{"text_format":"1","workbook":"xlsx","n_sheets":3,"sheets":["база","ТЕСТ","РЕЗУЛЬТАТЫ"],"not_rendered":{"charts":0,"images":1,"macros":1,"external_links":0,"defined_names":0,"comments":0,"pivot_tables":0},"unopened":[],"bounds":{"document_bytes":16777216,"sheet_cells":100000,"rows_first":2000,"rows_last":500,"rows_between":2000,"halvings":0,"cell_chars":16384,"cell_head_chars":4096},"cells_cut":0,"cells_raw":0,"read":"whole","date_system":"1900"}

{"sheet":"база","index":0,"n_rows":22,"n_cols":6,"rows_kept":22,"cut":false,"hidden":true,"merged":[]}
[]
[null,"ТекстВопроса","ТекстОтвета1","ТекстОтвета2","ТекстОтвета3","ТекстОтвета4"]
[1,"Какое описание пяти этапов преобразования данных в процессе инкапсуляции при отправке почтового сообщения одним компьютером другому является правильным?","Биты, кадры, пакеты, сегменты, данные","Пакеты, сегменты, данные, биты, кадры","Сегменты, пакеты, кадры, биты, данные","Данные, сегменты, пакеты, кадры, биты"]
[{"$f":"A3+1","v":2}," При отправке почтового сообщения с компьютера А на компьютер Б по локальной сети данные необходимо инкапсулировать. Что происходит после создания пакета?","Пакет преобразовывается в двоичный формат","Пакет сегментируется на кадры","Пакет помещается в кадр","Пакет передается по среде"]
[{"$f":"A4+1","v":3},"Какой уровень эталонной модели OSI решает вопросы уведомления о неисправностях, учитывает топологию сети и управляет потоком данных?","Сетевой","Физический","Канальный ","Транспортный"]
[4," При отправке почтового сообщения с компьютера А на компьютер Б данные необходимо инкапсулировать. Что происходит после преобразования алфавитно-цифровых символов в данные?","Данные помещаются в кадр","К данным добавляется сетевой заголовок","Данные преобразовываются в двоичный формат","Данные сегментируются на меньшие блоки"]
[5,"При отправке почтового сообщения с компьютера А на компьютер Б данные необходимо инкапсулировать. Какое из описаний первого этапа инкапсуляции является правильным?","К сообщению добавляется сетевой заголовок (адреса источника и получателя)","Сообщение сегментируется в легко транспортируемые блоки","Сообщение преобразовывается в двоичный формат","Алфавитно-цифровые символы конвертируются в данные"]
[{"$f":"A7+1","v":6},"Что из приведенного ниже наилучшим образом описывает функцию уровня представлений?","Он обеспечивает электрические, механические, процедурные и функциональные средства для активизации и поддержания канала связи между системами","Он предоставляет сетевые услуги пользовательским прикладным программам","Он обеспечивает форматирование кода и представление данных","Он обрабатывает уведомления об ошибках, учитывает топологию сети и управляет потоком данных"]
[7,"Какой уровень эталонной модели OSI обеспечивает сетевые услуги пользовательским прикладным программам?","Транспортный","Уровень приложений","Уровень представлений ","Сеансовый"]
[8,"Какой уровень эталонной модели OSI устанавливает, обслуживает и управляет сеансами взаимодействия прикладных программ?","Уровень приложений","Сеансовый","Уровень представлений","Транспортный"]
[9,"Эталонная модель OSI является многоуровневой. Какое из положений неправильно характеризует причину многоуровневости модели?","Многоуровневая модель дает возможность разработчикам сконцентрировать усилия на более специализированных направлениях","Многоуровневая модель предотвращает влияние изменений в одной области на другие области","Многоуровневая модель увеличивает сложность","Многоуровневая модель стандартизирует интерфейсы"]
[{"$f":"A11+1","v":10},"Что из приведенного ниже наилучшим образом описывает дейтаграмму?","Посылаемое источнику сообщение с подтверждением получения неповрежденных данных","Пакет данных размером менее 100 байт","Пакет сетевого уровня","Двоичное представление информации о маршрутизации"]
[11,"Какие уровни в эталонной модели OSI являются четырьмя верхними?","Физический, канальный, сетевой и транспортный","Приложений, сеансовый, сетевой и физический","Физический, сетевой, транспортный и приложений","Приложений, представлений, сеансовый и транспортный"]
[12,"Какой из приведенных ниже механизмов управляет объемом пересылаемой из конца в конец информации и помогает в обеспечении надежности протокола TCP? (ВОЗМОЖНЫ 2 ВЕРНЫХ ОТВЕТА!!!)","Восстановление после ошибки","Широковещание","Работа с окнами","Управление потоком"]
[13,"Какой из уровней эталонной модели OSI осуществляет управление потоком и восстановление после ошибки?","Сетевой уровень","Уровень управления линией передачи данных","Уровень представлений","Уровень приложений"]
[14,"Что из приведенного ниже наилучшим образом описывает функцию уровня представлений?","Устанавливает приложения, управляет ими и завершает их","Поддерживает взаимодействие таких программ, как электронная почта, передача файлов и Web-браузеры","Выполняет трансляцию между различными форматами данных, например между форматами ASCII и EBCDIC","Обеспечивает транспортный сервис на всем пути от хост-машины до пункта назначения"]
[15,"Какой из уровней эталонной модели OSI устанавливает связь между приложениями, управляет ею и завершает ее?","Уровень приложений","Сеансовый уровень","Уровень представлений","Транспортный уровень"]
[16,"Какой уровень эталонной модели OSI поддерживает взаимодействие между такими программами, как электронная почта, передача файлов и Web-браузеры?","Сеансовый уровень","Уровень представлений","Транспортный уровень","Уровень приложений"]
[17]
[18]
[19]
[20]

{"sheet":"ТЕСТ","index":1,"n_rows":18,"n_cols":3,"rows_kept":18,"cut":false,"hidden":false,"merged":[[12,2,12,5],[14,2,14,5],[15,2,15,5],[16,2,16,5],[17,2,17,5],[13,2,13,3],[13,4,13,5],[1,2,1,5],[0,0,0,5],[10,2,10,5],[11,2,11,5],[2,2,2,5],[3,2,3,5],[5,2,5,5],[6,2,6,5],[7,2,7,5],[9,2,9,5],[4,2,4,5],[8,2,8,5]]}
["ТЕСТ ПО ТЕМЕ \"МОДЕЛЬ OSI.\""]
["№ задания","Вопрос","Варианты ответов"]
[{"$f":"база!A3","v":1},{"$f":"база!B3","v":"Какое описание пяти этапов преобразования данных в процессе инкапсуляции при отправке почтового сообщения одним компьютером другому является правильным?"}]
[{"$f":"база!A4","v":2},{"$f":"база!B4","v":" При отправке почтового сообщения с компьютера А на компьютер Б по локальной сети данные необходимо инкапсулировать. Что происходит после создания пакета?"}]
[{"$f":"база!A5","v":3},{"$f":"база!B5","v":"Какой уровень эталонной модели OSI решает вопросы уведомления о неисправностях, учитывает топологию сети и управляет потоком данных?"}]
[{"$f":"база!A6","v":4},{"$f":"база!B6","v":" При отправке почтового сообщения с компьютера А на компьютер Б данные необходимо инкапсулировать. Что происходит после преобразования алфавитно-цифровых символов в данные?"}]
[{"$f":"база!A7","v":5},{"$f":"база!B7","v":"При отправке почтового сообщения с компьютера А на компьютер Б данные необходимо инкапсулировать. Какое из описаний первого этапа инкапсуляции является правильным?"}]
[{"$f":"база!A8","v":6},{"$f":"база!B8","v":"Что из приведенного ниже наилучшим образом описывает функцию уровня представлений?"}]
[{"$f":"база!A9","v":7},{"$f":"база!B9","v":"Какой уровень эталонной модели OSI обеспечивает сетевые услуги пользовательским прикладным программам?"}]
[{"$f":"база!A10","v":8},{"$f":"база!B10","v":"Какой уровень эталонной модели OSI устанавливает, обслуживает и управляет сеансами взаимодействия прикладных программ?"}]
[{"$f":"база!A11","v":9},{"$f":"база!B11","v":"Эталонная модель OSI является многоуровневой. Какое из положений неправильно характеризует причину многоуровневости модели?"}]
[{"$f":"база!A12","v":10},{"$f":"база!B12","v":"Что из приведенного ниже наилучшим образом описывает дейтаграмму?"}]
[{"$f":"база!A13","v":11},{"$f":"база!B13","v":"Какие уровни в эталонной модели OSI являются четырьмя верхними?"}]
[{"$f":"база!A14","v":12},{"$f":"база!B14","v":"Какой из приведенных ниже механизмов управляет объемом пересылаемой из конца в конец информации и помогает в обеспечении надежности протокола TCP? (ВОЗМОЖНЫ 2 ВЕРНЫХ ОТВЕТА!!!)"}]
[{"$f":"база!A15","v":13},{"$f":"база!B15","v":"Какой из уровней эталонной модели OSI осуществляет управление потоком и восстановление после ошибки?"}]
[{"$f":"база!A16","v":14},{"$f":"база!B16","v":"Что из приведенного ниже наилучшим образом описывает функцию уровня представлений?"}]
[{"$f":"база!A17","v":15},{"$f":"база!B17","v":"Какой из уровней эталонной модели OSI устанавливает связь между приложениями, управляет ею и завершает ее?"}]
[{"$f":"база!A18","v":16},{"$f":"база!B18","v":"Какой уровень эталонной модели OSI поддерживает взаимодействие между такими программами, как электронная почта, передача файлов и Web-браузеры?"}]

{"sheet":"РЕЗУЛЬТАТЫ","index":2,"n_rows":22,"n_cols":5,"rows_kept":22,"cut":false,"hidden":true,"merged":[[17,1,17,3],[13,1,13,2],[12,1,12,3],[6,1,6,3],[14,1,14,3],[15,1,15,3],[16,1,16,3],[9,1,9,3],[10,1,10,3],[11,1,11,3],[8,1,8,3],[1,1,1,3],[2,1,2,3],[3,1,3,3],[5,1,5,3],[7,1,7,3],[4,1,4,3]]}
[]
["№ п/п","ОТВЕТЫ",null,null,"БАЛЛЫ"]
[{"$f":"база!A3","v":1},{"$f":"база!C3","v":"Биты, кадры, пакеты, сегменты, данные"},null,null,{"$f":"IF(ТЕСТ!C3=РЕЗУЛЬТАТЫ!B3,1,0)","v":0}]
[{"$f":"база!A4","v":2},{"$f":"база!D4","v":"Пакет сегментируется на кадры"},null,null,{"$f":"IF(ТЕСТ!C4=РЕЗУЛЬТАТЫ!B4,1,0)","v":0}]
[{"$f":"база!A5","v":3},{"$f":"база!E5","v":"Канальный "},null,null,{"$f":"IF(ТЕСТ!C5=РЕЗУЛЬТАТЫ!B5,1,0)","v":0}]
[{"$f":"база!A6","v":4},{"$f":"база!F6","v":"Данные сегментируются на меньшие блоки"},null,null,{"$f":"IF(ТЕСТ!C6=РЕЗУЛЬТАТЫ!B6,1,0)","v":0}]
[{"$f":"база!A7","v":5},{"$f":"база!E7","v":"Сообщение преобразовывается в двоичный формат"},null,null,{"$f":"IF(ТЕСТ!C7=РЕЗУЛЬТАТЫ!B7,1,0)","v":0}]
[{"$f":"база!A8","v":6},{"$f":"база!E8","v":"Он обеспечивает форматирование кода и представление данных"},null,null,{"$f":"IF(ТЕСТ!C8=РЕЗУЛЬТАТЫ!B8,1,0)","v":0}]
[{"$f":"база!A9","v":7},{"$f":"база!F9","v":"Сеансовый"},null,null,{"$f":"IF(ТЕСТ!C9=РЕЗУЛЬТАТЫ!B9,1,0)","v":0}]
[{"$f":"база!A10","v":8},{"$f":"база!D10","v":"Сеансовый"},null,null,{"$f":"IF(ТЕСТ!C10=РЕЗУЛЬТАТЫ!B10,1,0)","v":0}]
[{"$f":"база!A11","v":9},{"$f":"база!F11","v":"Многоуровневая модель стандартизирует интерфейсы"},null,null,{"$f":"IF(ТЕСТ!C11=РЕЗУЛЬТАТЫ!B11,1,0)","v":0}]
[{"$f":"база!A12","v":10},{"$f":"база!C12","v":"Посылаемое источнику сообщение с подтверждением получения неповрежденных данных"},null,null,{"$f":"IF(ТЕСТ!C12=РЕЗУЛЬТАТЫ!B12,1,0)","v":0}]
[{"$f":"база!A13","v":11},{"$f":"база!F13","v":"Приложений, представлений, сеансовый и транспортный"},null,null,{"$f":"IF(ТЕСТ!C13=РЕЗУЛЬТАТЫ!B13,1,0)","v":0}]
[{"$f":"база!A14","v":12},{"$f":"база!C14","v":"Восстановление после ошибки"},null,{"$f":"база!F14","v":"Управление потоком"},{"$f":"IF(OR(ТЕСТ!$C$14=РЕЗУЛЬТАТЫ!B14,ТЕСТ!$C$14=РЕЗУЛЬТАТЫ!D14),1,-1)+IF(OR(ТЕСТ!$E$14=РЕЗУЛЬТАТЫ!B14,ТЕСТ!$E$14=D14),1,-1)-IF(OR(AND(ТЕСТ!C14=ТЕСТ!E14,ТЕСТ!C14=РЕЗУЛЬТАТЫ!B14),AND(ТЕСТ!C14=ТЕСТ!E14,ТЕСТ!C14=РЕЗУЛЬТАТЫ!D14)),1,0)","v":-2}]
[{"$f":"база!A15","v":13},{"$f":"база!D15","v":"Уровень управления линией передачи данных"},null,null,{"$f":"IF(ТЕСТ!C15=РЕЗУЛЬТАТЫ!B15,1,0)","v":0}]
[{"$f":"база!A16","v":14},{"$f":"база!E16","v":"Выполняет трансляцию между различными форматами данных, например между форматами ASCII и EBCDIC"},null,null,{"$f":"IF(ТЕСТ!C16=РЕЗУЛЬТАТЫ!B16,1,0)","v":0}]
[{"$f":"база!A17","v":15},{"$f":"база!D17","v":"Сеансовый уровень"},null,null,{"$f":"IF(ТЕСТ!C17=РЕЗУЛЬТАТЫ!B17,1,0)","v":0}]
[{"$f":"база!A18","v":16},{"$f":"база!F18","v":"Уровень приложений"},null,null,{"$f":"IF(ТЕСТ!C18=РЕЗУЛЬТАТЫ!B18,1,0)","v":0}]
[null,null,null,"сумма баллов",{"$f":"SUM(E3:E18)","v":-2}]
[null,"РЕЗУЛЬТАТ:",{"$f":"IF(E19/17>=0.9,\"ВАША ОЦЕНКА ОТЛИЧНО\",IF(E19/17>=0.8,\"ВАША ОЦЕНКА ХОРОШО!\",IF(E19/17>=0.7,\"ВАША ОЦЕНКА УДОВЛЕТВОРИТЕЛЬНО\",\"ВАША ОЦЕНКА НЕУДОВЛЕТВОРИТЕЛЬНО\")))","v":"ВАША ОЦЕНКА НЕУДОВЛЕТВОРИТЕЛЬНО"}]
[null,"КОЛИЧЕСТВО БАЛЛОВ ИЗ 17 ВОЗМОЖНЫХ:",{"$f":"E19","v":-2}]
[null,"НЕВЕРНЫЕ ОТВЕТЫ:"]